bitfinex-derivatives/quotes_BTCF0:USTF0_20230901
["timestamp","ask_amount","ask_price","bid_price","bid_amount"]
[1693580337882,0.8862528,25730.0,25724.0,0.6226]
[1693580338083,0.00389,25727.0,25724.0,0.6226]
[1693580338378,0.11123745,25726.0,25724.0,0.6226]
[1693580338591,0.00389,25725.0,25724.0,0.6226]
[1693580338790,0.00389,25727.0,25724.0,0.67914838]
[1693580338995,0.00389,25725.0,25724.0,0.67914838]
[1693580339692,0.00389,25727.0,25724.0,0.67914838]
[1693580339994,0.6226,25728.0,25726.0,0.6226]
[1693580339995,0.01599,25728.0,25726.0,0.6226]
[1693580340194,0.18939821,25731.0,25727.0,0.6226]
[1693580340385,0.15239821,25731.0,25729.0,0.6226]
[1693580341094,0.11123745,25730.0,25726.0,0.6226]
[1693580341397,0.00389,25727.0,25726.0,0.003]
[1693580341689,0.037,25728.0,25726.0,0.6256]
[1693580342195,0.037,25728.0,25727.0,0.05654838]
[1693580342394,0.05299,25728.0,25727.0,0.05654838]
[1693580343405,0.01599,25728.0,25727.0,0.05654838]
[1693580343600,0.00389,25727.0,25723.0,0.783]
[1693580344093,0.15239821,25730.0,25726.0,0.6226]
[1693580344290,0.17239821,25730.0,25727.0,0.6226]
[1693580344492,0.03389,25728.0,25727.0,0.6256]
[1693580344991,0.03389,25728.0,25727.0,0.68214838]
[1693580345195,0.03389,25728.0,25726.0,0.003]
[1693580345196,0.00389,25727.0,25726.0,0.003]
[1693580345396,0.07654838,25727.0,25726.0,0.003]
[1693580345690,0.09253838,25727.0,25726.0,0.003]
[1693580346588,0.14722745,25727.0,25726.0,0.003]
[1693580346997,0.15111745,25727.0,25725.0,0.6226]
[1693580347293,0.06043838,25726.0,25725.0,0.6226]
[1693580347691,0.13111745,25726.0,25725.0,0.6226]
[1693580348089,0.07642838,25726.0,25725.0,0.6226]
[1693580348591,0.05688,25726.0,25725.0,0.6256]
[1693580349596,0.11342838,25726.0,25725.0,0.6256]
[1693580351096,0.05688,25726.0,25725.0,0.6256]
[1693580351595,0.05688,25726.0,25725.0,0.68214838]
[1693580353094,0.13342838,25726.0,25725.0,0.6256]
[1693580353594,0.07688,25726.0,25725.0,0.68214838]
[1693580353898,0.05688,25726.0,25725.0,0.68214838]
[1693580355405,0.05299,25726.0,25725.0,0.68214838]
[1693580356300,0.037,25726.0,25725.0,1.90642634]
[1693580357408,0.037,25726.0,25725.0,2.14950467]
[1693580357789,0.15239821,25732.0,25725.0,6.20215629]
[1693580358003,0.15239821,25733.0,25731.0,0.6226]
[1693580358300,0.15239821,25733.0,25731.0,0.02]
[1693580358492,0.16838821,25733.0,25732.0,0.05654838]
[1693580358689,0.15239821,25734.0,25732.0,0.59975523]
[1693580358999,0.19049777,25735.0,25733.0,1.30174838]
[1693580359192,0.19049777,25735.0,25734.0,0.6226]
[1693580359391,0.19049777,25735.0,25734.0,0.67914838]
[1693580360099,0.19088589,25735.0,25734.0,0.67914838]
[1693580360499,0.00038812,25735.0,25734.0,0.67914838]
[1693580360700,0.01738812,25735.0,25734.0,0.68014838]
[1693580361501,0.01738812,25735.0,25734.0,0.67914838]
[1693580361502,0.00738812,25735.0,25734.0,0.67914838]
[1693580362002,0.00738812,25735.0,25734.0,0.69914838]
[1693580362205,0.00738812,25735.0,25734.0,1.27947306]
[1693580363000,0.16001348,25735.0,25734.0,0.69914838]
[1693580363201,0.15301348,25735.0,25734.0,0.69914838]
[1693580363404,0.17001348,25735.0,25734.0,0.70014838]
[1693580363998,0.17001348,25735.0,25734.0,1.28072042]
[1693580364591,0.00038812,25735.0,25734.0,1.27972042]
[1693580364808,0.00038812,25735.0,25734.0,1.28472042]
[1693580365104,0.15262536,25736.0,25734.0,1.28472042]
[1693580365308,0.15262536,25736.0,25735.0,0.67914838]
[1693580365697,0.15262536,25736.0,25735.0,1.2857253]
[1693580366200,0.15301186,25736.0,25735.0,1.2857253]
[1693580367409,0.0073865,25736.0,25735.0,1.2857253]
[1693580368106,0.15262536,25737.0,25735.0,1.2907253]
[1693580368408,0.15262536,25737.0,25736.0,0.67914838]
[1693580368603,0.15262536,25737.0,25736.0,0.69914838]
[1693580369207,0.15262536,25737.0,25736.0,1.28386954]
[1693580369409,0.15262536,25738.0,25736.0,1.28386954]
[1693580369703,0.15262536,25738.0,25737.0,0.67914838]
[1693580369908,0.15102536,25738.0,25737.0,0.69914838]
[1693580370106,0.19049777,25740.0,25738.0,0.05654838]
[1693580370295,0.19049777,25741.0,25739.0,0.6226]
[1693580370605,0.20648777,25741.0,25740.0,0.67914838]
[1693580371500,0.21037777,25741.0,25740.0,0.6226]
[1693580371695,0.23037777,25741.0,25740.0,0.6226]
[1693580372105,0.34161522,25741.0,25740.0,0.6226]
[1693580372406,0.13512745,25741.0,25740.0,0.6226]
[1693580372703,0.15111745,25741.0,25740.0,0.6226]
[1693580373303,0.35870013,25741.0,25740.0,0.6226]
[1693580373505,0.05688,25741.0,25740.0,0.6226]
[1693580373911,0.23046401,25741.0,25740.0,0.6256]
[1693580374204,0.24746401,25741.0,25740.0,0.6256]
[1693580375409,0.24746401,25741.0,25740.0,0.68214838]
[1693580375605,0.24746401,25741.0,25740.0,0.6256]
[1693580375805,0.05688,25741.0,25740.0,0.6256]
[1693580376000,0.11156907,25741.0,25740.0,0.6256]
[1693580376197,0.16811745,25741.0,25740.0,0.6256]
[1693580376405,0.16811745,25741.0,25740.0,0.003]
[1693580376710,0.00389,25740.0,25739.0,0.6226]
[1693580376913,0.3416704,25740.0,25739.0,0.6226]
[1693580377208,0.13512745,25740.0,25739.0,0.60661]
[1693580377408,0.13512745,25740.0,25736.0,0.6226]
[1693580377612,0.19054304,25738.0,25736.0,0.6226]
[1693580377906,0.21054304,25738.0,25737.0,0.6226]
[1693580378111,0.26709142,25738.0,25737.0,0.6226]
[1693580378500,0.07654838,25738.0,25735.0,0.6226]
[1693580378701,0.00389,25736.0,25735.0,0.6226]
[1693580378904,0.02389,25736.0,25735.0,0.6226]
[1693580379313,0.13512745,25736.0,25735.0,0.6226]
[1693580380310,0.6256732,25736.0,25732.0,0.6226]
[1693580380512,0.3017832,25735.0,25732.0,0.6226]
[1693580380707,0.19054575,25735.0,25732.0,0.6226]
[1693580380917,0.11123745,25734.0,25732.0,0.6226]
[1693580381111,0.21054575,25735.0,25732.0,0.6226]
[1693580381312,0.02,25734.0,25732.0,0.6226]
[1693580381616,0.11512745,25733.0,25732.0,0.6226]
[1693580381816,0.06043838,25733.0,25732.0,0.6256]
[1693580382014,0.11512745,25733.0,25732.0,0.6256]
[1693580382214,0.13512745,25733.0,25732.0,0.6256]
[1693580384211,0.13512745,25733.0,25732.0,0.6226]
[1693580384406,0.09743838,25733.0,25732.0,0.6256]
[1693580384611,0.04089,25733.0,25732.0,0.68214838]
[1693580385313,0.09743838,25733.0,25732.0,0.6256]
[1693580385921,0.07743838,25733.0,25732.0,0.6256]
[1693580386218,0.09743838,25733.0,25732.0,0.6256]
[1693580387017,0.15212745,25733.0,25732.0,0.6256]
[1693580387223,0.00389,25732.0,25729.0,0.6226]
[1693580387420,0.11123745,25731.0,25729.0,0.6226]
[1693580387620,0.51442631,25732.0,25729.0,0.6226]
[1693580387828,0.6226,25730.0,25726.0,0.6226]
[1693580388119,0.05468907,25729.0,25726.0,0.60361]
[1693580388314,0.00389,25727.0,25726.0,0.60361]
[1693580388514,0.07468907,25727.0,25726.0,0.60361]
[1693580388920,0.13123745,25727.0,25726.0,0.60361]
[1693580389521,0.07654838,25727.0,25726.0,0.60361]
[1693580389915,0.07654838,25727.0,25726.0,0.60461]
[1693580390218,0.13123745,25727.0,25726.0,0.60461]
[1693580390617,0.15123745,25727.0,25726.0,0.60661]
[1693580391318,0.13123745,25727.0,25726.0,0.60661]
[1693580391622,0.15123745,25727.0,25726.0,0.60661]
[1693580392815,0.07654838,25727.0,25726.0,0.60661]
[1693580393022,0.02,25727.0,25726.0,0.66315838]
[1693580395915,0.07654838,25727.0,25726.0,0.60661]
[1693580396325,0.13123745,25727.0,25726.0,0.60661]
[1693580396515,0.15123745,25727.0,25726.0,0.60661]
[1693580397522,0.09654838,25727.0,25726.0,0.60661]
[1693580397823,0.02,25727.0,25726.0,0.58763]
[1693580398219,0.05132991,25727.0,25726.0,0.64417838]
[1693580398414,0.05521991,25727.0,25726.0,0.64417838]
[1693580398623,0.02,25727.0,25726.0,0.58763]
[1693580399221,0.13123745,25727.0,25726.0,0.58763]
[1693580399719,0.15123745,25727.0,25726.0,0.58763]
[1693580399920,0.15123745,25727.0,25726.0,0.56864]
[1693580400120,0.15512745,25727.0,25726.0,0.56864]
[1693580400328,0.10043838,25727.0,25726.0,0.56864]
[1693580400625,0.09654838,25727.0,25726.0,0.56864]
[1693580400824,0.13512745,25727.0,25726.0,0.56864]
[1693580401618,0.15512745,25727.0,25726.0,0.56864]
[1693580402324,0.15512745,25727.0,25726.0,0.4232]
[1693580402519,0.13512745,25727.0,25726.0,0.4232]
[1693580403530,0.08043838,25727.0,25726.0,0.4232]
[1693580403728,0.02,25727.0,25726.0,0.47974838]
[1693580403928,0.02,25727.0,25726.0,0.49974838]
[1693580404235,0.18308882,25733.0,25726.0,0.6032]
[1693580404432,0.18308882,25733.0,25732.0,0.4202]
[1693580404728,0.03078614,25733.0,25732.0,0.4202]
[1693580404922,0.15230268,25734.0,25733.0,0.4202]
[1693580405148,0.20885106,25734.0,25733.0,1.0004]
[1693580406023,0.05654838,25734.0,25733.0,0.5802]
[1693580406425,0.05654838,25734.0,25733.0,0.5812]
[1693580406631,0.11123745,25734.0,25733.0,0.5812]
[1693580407126,0.3,25732.0,25731.0,0.4202]
[1693580407333,0.3,25732.0,25725.0,0.4202]
[1693580407334,0.43512745,25732.0,25729.0,0.6224]
[1693580407624,0.15236759,25730.0,25729.0,0.6224]
[1693580407832,0.28360504,25730.0,25727.0,0.6224]
[1693580408130,0.15236759,25729.0,25727.0,0.6224]
[1693580408326,0.11512745,25728.0,25727.0,0.6224]
[1693580408531,0.13512745,25728.0,25727.0,0.6224]
[1693580408924,0.08043838,25728.0,25727.0,0.6224]
[1693580409126,0.02,25728.0,25727.0,0.6224]
[1693580409433,0.3,25729.0,25727.0,0.6424]
[1693580409738,0.3,25729.0,25728.0,0.6224]
[1693580410231,0.35654838,25729.0,25728.0,0.6224]
[1693580410832,0.35754838,25729.0,25728.0,0.6244]
[1693580411042,0.41223745,25729.0,25728.0,0.6244]
[1693580411850,0.35754838,25729.0,25728.0,0.6244]
[1693580412037,0.001,25729.0,25728.0,0.6244]
[1693580412237,0.03142371,25731.0,25729.0,0.6224]
[1693580412238,0.18373768,25731.0,25729.0,0.6224]
[1693580412538,0.45231397,25732.0,25730.0,0.67894838]
[1693580412746,0.50886235,25732.0,25731.0,0.6224]
[1693580412941,0.50886235,25732.0,25731.0,0.7746]
[1693580413331,0.54041347,25732.0,25731.0,0.7746]
[1693580413538,0.0880995,25732.0,25731.0,0.7746]
[1693580413736,0.1839177,25732.0,25731.0,0.7746]
[1693580413936,0.1849177,25732.0,25731.0,0.7776]
[1693580414139,0.24146608,25732.0,25731.0,0.7776]
[1693580414741,0.001,25732.0,25731.0,0.7776]
[1693580414940,0.15239675,25736.0,25731.0,0.7976]
[1693580415239,0.15239675,25736.0,25735.0,0.6224]
[1693580415444,0.15239675,25737.0,25736.0,0.6224]
[1693580415639,0.15239675,25737.0,25736.0,1.2448]
[1693580415942,0.15239675,25737.0,25736.0,1.30134838]
[1693580416443,0.15247571,25739.0,25737.0,0.05654838]
[1693580416642,0.15247571,25739.0,25736.0,1.2648]
[1693580416643,0.15247571,25739.0,25738.0,0.6224]
[1693580416856,0.19039246,25740.0,25738.0,0.6224]
[1693580417057,0.95415232,25743.0,25737.0,0.1624]
[1693580417058,0.19039246,25739.0,25737.0,0.7848]
[1693580417347,0.05468907,25738.0,25737.0,0.1624]
[1693580417546,0.21039246,25739.0,25737.0,0.1624]
[1693580417747,0.24694084,25738.0,25737.0,0.1624]
[1693580417944,0.19039246,25738.0,25737.0,0.7848]
[1693580418149,0.24694084,25738.0,25737.0,0.7848]
[1693580418549,0.32162991,25738.0,25737.0,0.7848]
[1693580418751,0.30162991,25738.0,25737.0,0.7848]
[1693580419242,0.32162991,25738.0,25737.0,0.7848]
[1693580419547,0.13123745,25738.0,25737.0,0.7868]
[1693580419744,0.11123745,25738.0,25737.0,0.7868]
[1693580419942,0.13123745,25738.0,25737.0,0.7868]
[1693580420447,0.26721745,25738.0,25737.0,0.7868]
[1693580420744,0.19066907,25738.0,25737.0,0.84334838]
[1693580421448,0.05654838,25738.0,25737.0,0.7868]
[1693580421651,0.037,25738.0,25737.0,0.7898]
[1693580421843,0.037,25738.0,25737.0,0.8098]
[1693580422246,0.037,25738.0,25737.0,0.86734838]
[1693580422847,0.18995914,25738.0,25737.0,0.86734838]
[1693580423055,0.18995914,25738.0,25737.0,0.86634838]
[1693580423751,0.1525773,25739.0,25737.0,1.45247543]
[1693580423949,0.1525773,25739.0,25737.0,0.77152705]
[1693580423950,0.00062513,25738.0,25737.0,0.77152705]
[1693580424251,0.00062513,25738.0,25737.0,0.8078]
[1693580424445,0.00062513,25738.0,25737.0,0.86434838]
[1693580424647,0.02162513,25738.0,25737.0,0.86434838]
[1693580424847,0.021,25738.0,25737.0,0.86434838]
[1693580425047,0.1525773,25740.0,25738.0,0.05654838]
[1693580425246,0.30389,25746.0,25739.0,0.6224]
[1693580425247,0.1525773,25741.0,25739.0,0.6224]
[1693580425449,0.1525773,25741.0,25740.0,0.6224]
[1693580425651,0.1525773,25741.0,25740.0,0.69894838]
[1693580425861,0.15318293,25741.0,25740.0,0.69894838]
[1693580426554,0.15418293,25741.0,25740.0,0.70194838]
[1693580426951,0.00160563,25741.0,25740.0,0.70194838]
[1693580427150,0.1525773,25743.0,25740.0,1.28107969]
[1693580427350,0.1525773,25746.0,25742.0,0.6224]
[1693580427552,0.1525773,25745.0,25742.0,0.02]
[1693580427756,0.05654838,25744.0,25740.0,0.58213131]
[1693580427958,0.15310761,25745.0,25743.0,0.6224]
[1693580428258,0.15310761,25745.0,25740.0,0.003]
[1693580428259,0.20912568,25744.0,25740.0,0.003]
[1693580428459,0.20912568,25744.0,25743.0,0.6224]
[1693580428753,0.20965548,25744.0,25743.0,0.6224]
[1693580429156,0.20965548,25744.0,25743.0,0.6254]
[1693580429360,0.05707818,25744.0,25743.0,0.6254]
[1693580429749,0.05707818,25744.0,25743.0,0.6284]
[1693580430052,0.11176725,25744.0,25743.0,0.6284]
[1693580430254,0.11176725,25744.0,25743.0,0.6254]
[1693580430454,0.75905725,25744.0,25743.0,0.003]
[1693580430657,0.75905725,25744.0,25743.0,0.005]
[1693580431359,0.9458748,25744.0,25743.0,0.005]
[1693580431560,1.2458748,25744.0,25743.0,0.005]
[1693580431857,1.27760199,25744.0,25743.0,0.005]
[1693580432056,1.27760199,25744.0,25743.0,0.006]
[1693580432959,1.27760199,25744.0,25743.0,0.00540001]
[1693580432960,1.09078444,25744.0,25743.0,0.00540001]
[1693580433152,0.00389,25740.0,25734.0,0.65283373]
[1693580433354,0.6224,25738.0,25735.0,0.14712]
[1693580433556,0.00389,25736.0,25734.0,0.6224]
[1693580433859,0.02389,25736.0,25734.0,0.67894838]
[1693580434061,0.11123745,25735.0,25734.0,0.6224]
[1693580434259,0.13123745,25735.0,25734.0,0.6224]
[1693580434653,0.001,25736.0,25734.0,0.6334]
[1693580434956,0.00052366,25735.0,25734.0,0.011]
[1693580435151,0.00152366,25735.0,25734.0,0.68994838]
[1693580435353,0.00152366,25735.0,25734.0,0.6334]
[1693580435863,0.05521273,25735.0,25734.0,0.6254]
[1693580436061,0.07521273,25735.0,25734.0,0.003]
[1693580436363,0.13176111,25735.0,25734.0,0.003]
[1693580436555,0.13176111,25735.0,25734.0,0.002]
[1693580436757,0.13176111,25735.0,25731.0,0.7885]
[1693580436758,0.05707907,25734.0,25731.0,0.7885]
[1693580437060,0.00389,25732.0,25731.0,0.77111]
[1693580437260,0.02152366,25735.0,25731.0,0.77111]
[1693580437461,0.11123745,25734.0,25731.0,0.77111]
[1693580437655,0.02,25734.0,25731.0,0.77111]
[1693580437863,0.00389,25732.0,25731.0,0.77111]
[1693580438063,0.00389,25732.0,25731.0,0.77411]
[1693580438260,0.02389,25732.0,25731.0,0.75514]
[1693580438761,0.02048693,25732.0,25731.0,0.75514]
[1693580438957,0.07703531,25732.0,25731.0,0.75514]
[1693580439259,0.08092531,25732.0,25731.0,0.1691]
[1693580439465,0.08092531,25732.0,25731.0,0.003]
[1693580439763,0.43561438,25732.0,25731.0,0.003]
[1693580439961,0.36092531,25732.0,25731.0,0.003]
[1693580440162,0.43561438,25732.0,25731.0,0.003]
[1693580440561,0.47261438,25732.0,25731.0,0.003]
[1693580440762,0.47361438,25732.0,25731.0,0.003]
[1693580442359,0.66177562,25732.0,25731.0,0.006]
[1693580443066,0.62477562,25732.0,25731.0,0.003]
[1693580443253,0.66177562,25732.0,25731.0,0.006]
[1693580446967,1.31145508,25732.0,25731.0,0.006]
[1693580447861,1.16330647,25732.0,25731.0,0.006]
[1693580448567,1.31562215,25732.0,25731.0,0.006]
[1693580449162,1.16330647,25732.0,25731.0,0.006]
[1693580449868,1.34961802,25732.0,25731.0,0.006]
[1693580450071,1.16330647,25732.0,25731.0,0.006]
[1693580450256,1.34961802,25732.0,25731.0,0.006]
[1693580450460,1.16330647,25732.0,25731.0,0.006]
[1693580450661,1.34961802,25732.0,25731.0,0.006]
[1693580451665,0.31463825,25732.0,25731.0,0.6484]
[1693580451862,0.10577902,25732.0,25731.0,0.6484]
[1693580452065,0.10577902,25732.0,25731.0,0.6284]
[1693580452461,0.10966902,25732.0,25731.0,0.6284]
[1693580452861,0.1432174,25732.0,25731.0,0.6264]
[1693580453065,0.08277902,25732.0,25731.0,0.70294838]
[1693580453264,0.05160956,25732.0,25731.0,0.70294838]
[1693580453556,0.03460956,25732.0,25731.0,0.70194838]
[1693580453760,0.06260956,25732.0,25731.0,0.70394838]
[1693580453958,0.06260956,25732.0,25731.0,0.70094838]
[1693580454167,0.06260956,25732.0,25731.0,0.70394838]
[1693580454569,0.02860956,25732.0,25731.0,0.70094838]
[1693580454772,0.06260956,25732.0,25731.0,0.70394838]
[1693580454967,0.03400956,25732.0,25731.0,0.70394838]
[1693580455168,0.19020155,25737.0,25731.0,0.70194838]
[1693580455169,0.15231085,25737.0,25731.0,0.70194838]
[1693580455470,0.49020155,25739.0,25736.0,1.2448]
[1693580455471,0.15231085,25738.0,25736.0,1.2448]
[1693580455682,0.15231085,25738.0,25737.0,0.6224]
[1693580455865,0.15231085,25738.0,25737.0,0.69894838]
[1693580456059,0.15231085,25738.0,25737.0,0.6424]
[1693580456060,0.20885923,25738.0,25737.0,0.6424]
[1693580456777,0.20885923,25738.0,25737.0,0.6224]
[1693580456974,0.21385923,25738.0,25737.0,0.6454]
[1693580457272,0.2685483,25738.0,25737.0,0.6254]
[1693580457571,0.06154838,25738.0,25737.0,0.6254]
[1693580457762,0.26864597,25738.0,25737.0,0.6254]
[1693580458070,0.11623745,25738.0,25737.0,0.6254]
[1693580458264,0.13623745,25738.0,25737.0,0.6254]
[1693580458465,0.06154838,25738.0,25737.0,0.6254]
[1693580458869,0.21397852,25738.0,25737.0,0.6254]
[1693580459267,0.15743014,25738.0,25737.0,0.6254]
[1693580459574,0.52165488,25739.0,25737.0,0.6234]
[1693580459575,0.22165488,25739.0,25737.0,0.6234]
[1693580459771,0.005,25738.0,25737.0,0.06054838]
[1693580460072,0.06154838,25738.0,25737.0,0.004]
[1693580460285,0.08154838,25738.0,25737.0,0.004]
[1693580460464,0.75863745,25738.0,25737.0,0.00360001]
[1693580461272,0.75863745,25738.0,25737.0,0.002]
[1693580461575,0.79063745,25738.0,25737.0,0.005]
[1693580461971,0.79063745,25738.0,25737.0,0.003]
[1693580462277,0.79063745,25738.0,25737.0,0.006]
[1693580462474,0.3,25735.0,25730.0,0.1542]
[1693580462662,0.01299,25730.0,25729.0,0.6224]
[1693580462971,0.05468907,25731.0,25729.0,0.62941]
[1693580463277,0.00389,25732.0,25729.0,0.62941]
[1693580463576,0.11123745,25731.0,25730.0,0.003]
[1693580463766,0.11176517,25731.0,25730.0,0.003]
[1693580463969,0.12721745,25730.0,25729.0,0.60941]
[1693580464168,0.01598,25729.0,25727.0,0.6224]
[1693580464368,0.81234444,25731.0,25727.0,0.60642]
[1693580464569,0.11123745,25730.0,25727.0,0.60642]
[1693580464778,0.81234444,25731.0,25727.0,0.60642]
[1693580465075,0.11123745,25730.0,25729.0,0.009]
[1693580465669,0.13123745,25730.0,25729.0,0.009]
[1693580465869,0.13176449,25730.0,25727.0,0.61542]
[1693580466070,0.11123745,25729.0,25727.0,0.61542]
[1693580466270,0.02052704,25730.0,25727.0,0.61600299]
[1693580466475,0.00052704,25730.0,25727.0,0.61600299]
[1693580466681,0.11123745,25729.0,25727.0,0.61600299]
[1693580466867,0.00052704,25730.0,25727.0,0.61600299]
[1693580467066,0.04752704,25730.0,25727.0,0.61800299]
[1693580467266,0.11123745,25729.0,25727.0,0.61800299]
[1693580467477,0.04752704,25730.0,25727.0,0.61800299]
[1693580467783,0.03752704,25730.0,25729.0,0.6224]
[1693580467977,0.03752704,25730.0,25729.0,0.6424]
[1693580468179,0.03752704,25730.0,25729.0,0.6224]
[1693580468480,0.09407542,25730.0,25729.0,0.6224]
[1693580468676,0.14876449,25730.0,25729.0,0.6224]
[1693580468976,0.18323723,25732.0,25729.0,0.67894838]
[1693580469181,0.15241672,25735.0,25731.0,0.6224]
[1693580469372,0.15241672,25735.0,25734.0,0.6224]
[1693580469683,0.15241672,25735.0,25734.0,0.69894838]
[1693580469873,0.15285755,25735.0,25734.0,0.6424]
[1693580470072,0.15285755,25735.0,25734.0,0.6224]
[1693580470274,0.05698921,25735.0,25734.0,0.6224]
[1693580470474,0.11167828,25735.0,25734.0,0.6284]
[1693580470669,0.05698921,25735.0,25734.0,0.6284]
[1693580470879,0.05698921,25735.0,25734.0,0.6224]
[1693580471178,0.00644083,25735.0,25734.0,0.69894838]
[1693580471583,0.00844083,25735.0,25734.0,0.70194838]
[1693580471884,0.06498921,25735.0,25734.0,0.6454]
[1693580472075,0.06498921,25735.0,25734.0,0.6254]
[1693580472786,0.11967828,25735.0,25734.0,0.6254]
[1693580473082,0.272095,25735.0,25734.0,0.6254]
[1693580473274,0.21740593,25735.0,25734.0,0.6254]
[1693580474179,0.272095,25735.0,25734.0,0.6254]
[1693580474370,0.21740593,25735.0,25734.0,0.6254]
[1693580475484,0.06498921,25735.0,25734.0,0.6254]
[1693580475779,0.33019918,25735.0,25734.0,0.6254]
[1693580476376,0.33019918,25735.0,25734.0,0.003]
[1693580476775,0.31019918,25735.0,25734.0,0.003]
[1693580476983,0.13967828,25735.0,25734.0,0.003]
[1693580477193,0.76207828,25735.0,25734.0,0.003]
[1693580478988,0.01399,25734.0,25730.0,0.1528]
[1693580479193,0.8134623,25731.0,25730.0,0.13880999]
[1693580479388,0.8134623,25731.0,25727.0,0.00058299]
[1693580479389,0.66517971,25731.0,25727.0,0.00058299]
[1693580479684,0.00570701,25727.0,25726.0,0.6224]
[1693580479889,0.26589553,25727.0,25726.0,0.6224]
[1693580480082,0.11694446,25727.0,25726.0,0.6224]
[1693580480484,0.26591277,25727.0,25726.0,0.6224]
[1693580480691,0.26635225,25727.0,25726.0,0.6224]
[1693580481381,0.30335225,25727.0,25726.0,0.6254]
[1693580481784,0.03925649,25727.0,25726.0,0.68194838]
[1693580482093,0.05325649,25727.0,25726.0,0.70294838]
[1693580482485,0.10980487,25727.0,25726.0,0.6464]
[1693580482684,0.05325649,25727.0,25726.0,0.6464]
[1693580483188,0.05325649,25727.0,25726.0,0.70294838]
[1693580483597,0.15285831,25730.0,25729.0,0.6224]
[1693580483783,0.15285831,25733.0,25729.0,1.32134838]
[1693580483987,0.15285831,25733.0,25732.0,0.6224]
[1693580484187,0.19107289,25735.0,25732.0,0.6224]
[1693580484188,0.15285831,25734.0,25732.0,0.67894838]
[1693580484385,0.15285831,25734.0,25733.0,0.6224]
[1693580484693,0.15285831,25734.0,25733.0,0.69894838]
[1693580484896,0.19107289,25737.0,25736.0,0.6224]
[1693580485086,0.19107289,25738.0,25736.0,1.2648]
[1693580485288,0.19107289,25739.0,25737.0,0.67894838]
[1693580485492,0.19107289,25739.0,25738.0,0.6224]
[1693580485799,0.19107289,25740.0,25738.0,0.6424]
[1693580486096,0.19107289,25740.0,25739.0,0.6224]
[1693580486998,0.19107289,25740.0,25739.0,0.67894838]
[1693580487181,0.19907289,25740.0,25739.0,0.68094838]
[1693580487890,0.19907289,25740.0,25739.0,0.70094838]
[1693580489185,0.008,25740.0,25739.0,0.70094838]
[1693580490283,0.008,25740.0,25739.0,0.68094838]
[1693580490487,0.008,25740.0,25739.0,0.70094838]
[1693580492092,0.008,25740.0,25739.0,0.71594838]
[1693580492800,0.19107289,25743.0,25739.0,0.72194838]
[1693580493001,0.19107289,25743.0,25742.0,0.6224]
[1693580494007,0.19507289,25743.0,25742.0,0.69894838]
[1693580494196,0.004,25743.0,25742.0,0.67894838]
[1693580494386,0.19107289,25745.0,25742.0,0.69894838]
[1693580494588,0.008,25743.0,25742.0,0.024]
[1693580494792,0.008,25743.0,25742.0,0.6464]
[1693580494994,0.008,25743.0,25742.0,0.70294838]
[1693580495996,0.22225871,25746.0,25742.0,0.70294838]
[1693580496201,0.008,25745.0,25743.0,0.05654838]
[1693580496393,0.008,25745.0,25744.0,0.6224]
[1693580496588,0.03118582,25746.0,25744.0,1.30134838]
[1693580496901,0.19107289,25747.0,25745.0,0.6224]
[1693580497093,0.19107289,25747.0,25746.0,0.67894838]
[1693580497301,0.19107289,25747.0,25746.0,0.6224]
[1693580497696,0.19107289,25747.0,25746.0,0.67894838]
[1693580498188,0.19107289,25748.0,25746.0,0.67894838]
[1693580498387,0.19107289,25748.0,25747.0,0.67894838]
[1693580498602,0.19107289,25748.0,25747.0,0.6224]
[1693580498802,0.19107289,25748.0,25747.0,0.67894838]
[1693580499501,0.19907289,25748.0,25747.0,0.68194838]
[1693580500800,0.19907289,25748.0,25747.0,0.68494838]
[1693580501197,0.008,25748.0,25747.0,0.68494838]
[1693580502906,0.00845564,25748.0,25747.0,0.68494838]
[1693580504697,0.00845564,25748.0,25747.0,0.6284]
[1693580505802,0.00845564,25748.0,25747.0,0.68494838]
[1693580506899,0.06500402,25748.0,25747.0,0.6284]
[1693580507102,0.08500402,25748.0,25747.0,0.6284]
[1693580507410,0.70740402,25748.0,25747.0,0.006]
[1693580507700,0.76209309,25748.0,25747.0,0.00540001]
[1693580507905,0.762207,25748.0,25747.0,0.00540001]
[1693580508700,0.95327989,25748.0,25747.0,0.00540001]
[1693580508904,0.762207,25748.0,25747.0,0.00540001]
[1693580509207,0.139807,25748.0,25747.0,0.62780001]
[1693580509410,0.08511793,25748.0,25747.0,0.62780001]
[1693580510012,0.762207,25748.0,25747.0,0.00540001]
[1693580510308,0.00388,25746.0,25742.0,0.6224]
[1693580510498,0.00388,25744.0,25742.0,0.60302]
[1693580510694,0.02388,25744.0,25742.0,0.60302]
[1693580510900,0.00388,25744.0,25743.0,0.6224]
[1693580511101,0.00388,25744.0,25743.0,0.6424]
[1693580511414,0.00388,25744.0,25743.0,0.67894838]
[1693580511611,0.00056652,25745.0,25743.0,0.69894838]
[1693580511911,0.003,25746.0,25744.0,0.67894838]
[1693580512098,0.03866995,25748.0,25745.0,0.6224]
[1693580512303,0.00388,25746.0,25745.0,0.02]
[1693580512502,0.49107289,25749.0,25745.0,0.6224]
[1693580512702,0.49107289,25749.0,25746.0,0.6224]
[1693580512898,0.19495289,25750.0,25748.0,0.6224]
[1693580513107,0.00388,25750.0,25749.0,0.6224]
[1693580513811,0.06099995,25750.0,25749.0,0.6224]
[1693580514812,0.00645157,25750.0,25749.0,0.6254]
[1693580515408,0.01745157,25750.0,25749.0,0.68494838]
[1693580516307,0.01357157,25750.0,25749.0,0.68494838]
[1693580516709,0.01338105,25750.0,25749.0,0.68494838]
[1693580517012,0.01338105,25750.0,25749.0,0.70494838]
[1693580517513,0.01338105,25750.0,25749.0,0.68494838]
[1693580517807,0.01338105,25750.0,25749.0,0.70494838]
[1693580519004,0.01338105,25750.0,25749.0,0.68494838]
[1693580519205,0.01338105,25750.0,25749.0,0.70494838]
[1693580519404,0.01338105,25750.0,25749.0,0.70194838]
[1693580519405,0.00238105,25750.0,25749.0,0.70194838]
[1693580519606,0.01138105,25750.0,25749.0,0.70494838]
[1693580519909,0.06792943,25750.0,25749.0,0.6284]
[1693580520211,0.01138105,25750.0,25749.0,0.6284]
[1693580520716,0.01138105,25750.0,25749.0,0.68494838]
[1693580521215,0.01138105,25750.0,25749.0,0.70494838]